bitfinex-derivatives/quotes_BNBF0:USTF0_20250510
["timestamp","ask_amount","ask_price","bid_price","bid_amount"]
[1746842706343,0.25907411,672.49,671.0,0.358]
[1746842706344,0.24669016,672.48,671.0,0.358]
[1746842706643,0.24669016,672.47,671.0,0.358]
[1746842707044,0.24669016,672.46,671.0,0.358]
[1746842707341,0.24669016,672.45,671.01,0.29803375]
[1746842707741,0.24669016,672.44,671.02,1.79464049]
[1746842707939,0.24669016,672.44,671.03,0.56186322]
[1746842708140,1.91700555,672.42,671.04,0.85989697]
[1746842708444,0.24669016,672.41,671.05,1.49769231]
[1746842708739,0.67969016,672.41,671.06,1.79572606]
[1746842708943,0.67969016,672.41,671.07,1.4980209]
[1746842709142,0.24669016,672.4,671.08,1.4980209]
[1746842709342,0.24669016,672.4,671.09,1.4980209]
[1746842709543,0.24669016,672.4,671.1,1.4980209]
[1746842709839,0.24669016,672.4,671.11,1.79605465]
[1746842710043,0.24669016,672.4,671.12,1.4980209]
[1746842710243,0.24669016,672.4,671.13,1.4980209]
[1746842710445,0.433,672.41,671.14,1.79605465]
[1746842710643,0.433,672.41,671.15,1.49805485]
[1746842710945,0.433,672.41,671.16,1.7960886]
[1746842711142,0.433,672.41,671.17,1.49805485]
[1746842711341,0.24660727,672.4,671.18,1.49805485]
[1746842711543,0.24660727,672.4,671.19,1.7960886]
[1746842711843,0.24660727,672.4,671.2,1.49805485]
[1746842712042,0.24660727,672.4,671.21,1.7960886]
[1746842712242,0.24660727,672.4,671.22,1.49805485]
[1746842712441,0.24660727,672.4,671.23,1.79639096]
[1746842712742,0.24660727,672.4,671.24,1.49835721]
[1746842712942,0.24660727,672.4,671.25,1.79639096]
[1746842713143,0.24660727,672.4,671.26,1.79639096]
[1746842713441,0.24660727,672.4,671.27,1.49835721]
[1746842713641,0.24660727,672.4,671.28,1.49835721]
[1746842713841,0.24660727,672.4,671.29,1.49835721]
[1746842714044,0.24660727,672.4,671.3,1.49835721]
[1746842714241,0.24660727,672.4,671.31,1.49835721]
[1746842714445,0.24660727,672.4,671.32,1.49835721]
[1746842714647,0.24660727,672.4,671.33,1.79639096]
[1746842714943,0.24660727,672.4,671.34,1.49835721]
[1746842715143,0.24660727,672.4,671.35,1.49835721]
[1746842715342,0.24660727,672.4,671.36,1.79639096]
[1746842715548,0.24660727,672.4,671.37,1.49835721]
[1746842715747,0.24660727,672.4,671.38,1.49835721]
[1746842715947,0.24660727,672.4,671.39,1.49835721]
[1746842716143,0.24660727,672.4,671.4,1.49795419]
[1746842716347,0.24660727,672.4,671.41,1.49795419]
[1746842716545,0.24660727,672.4,671.42,1.79598794]
[1746842716745,0.24660727,672.4,671.43,1.49795419]
[1746842716943,0.24660727,672.4,671.44,1.79598794]
[1746842717147,0.24660727,672.4,671.45,1.49795419]
[1746842717346,0.25894013,672.4,671.46,1.49795419]
[1746842717647,0.24665087,672.39,671.47,1.79598794]
[1746842717849,0.24665087,672.39,671.48,1.49795419]
[1746842718043,0.24665087,672.39,671.49,1.79598794]
[1746842718244,0.24665087,672.39,671.5,1.49795419]
[1746842718445,0.24665087,672.39,671.51,1.49795419]
[1746842718649,0.24665087,672.39,671.52,1.49795419]
[1746842718849,0.24665087,672.39,671.53,1.79598794]
[1746842719046,0.24665087,672.39,671.54,1.49795419]
[1746842719247,0.24665087,672.39,671.55,1.49795419]
[1746842719546,0.24665087,672.4,671.56,1.79598794]
[1746842719751,0.24665087,672.38,671.57,1.49733358]
[1746842719950,0.24665087,672.38,671.58,1.49733358]
[1746842720150,0.24665087,672.38,671.59,0.56200158]
[1746842720449,0.24665087,672.4,671.6,0.86003533]
[1746842720650,0.24665087,672.4,671.61,0.56200158]
[1746842720850,0.24665087,672.4,671.62,0.86003533]
[1746842721051,0.24665087,672.4,671.63,0.56200158]
[1746842721246,0.24665087,672.4,671.64,0.86003533]
[1746842721446,0.24665087,672.4,671.65,0.56177572]
[1746842721751,0.24665087,672.4,671.25,0.25891605]
[1746842721951,0.24665087,672.4,671.26,1.49636565]
[1746842722151,0.24665087,672.4,671.27,1.79418014]
[1746842722347,0.24665087,672.4,671.28,1.49621579]
[1746842722548,0.24665087,672.4,671.29,1.49621579]
[1746842722749,0.24665087,672.4,671.3,1.79403028]
[1746842722947,0.24665087,672.4,671.31,1.49621579]
[1746842723145,0.24665087,672.4,671.32,1.49621579]
[1746842723348,0.24665087,672.4,671.3,0.29781449]
[1746842723547,0.24665087,672.4,671.31,1.79369929]
[1746842723752,0.24665087,672.4,671.32,1.4958848]
[1746842723949,0.24665087,672.4,671.33,1.4958848]
[1746842724152,0.24665087,672.4,671.34,1.79369929]
[1746842724349,0.24665087,672.4,671.35,1.4958848]
[1746842724551,0.24665087,672.4,671.36,1.4958848]
[1746842724750,0.24665087,672.4,671.37,1.4958848]
[1746842724954,0.24665087,672.4,671.38,1.4958848]
[1746842725151,0.24665087,672.4,671.39,1.4958848]
[1746842725355,0.24665087,672.4,671.4,1.79325446]
[1746842725655,0.2589594,672.39,671.41,1.79325446]
[1746842725854,0.2589594,672.39,671.42,1.49543997]
[1746842726054,0.24665087,672.38,671.43,1.79325446]
[1746842726249,0.24665087,672.38,671.44,1.49543997]
[1746842726450,0.24665087,672.38,671.45,1.49543997]
[1746842726649,0.24665087,672.38,671.46,1.49543997]
[1746842726852,0.24665087,672.38,671.47,1.49543997]
[1746842727055,0.24665087,672.38,671.48,1.79325446]
[1746842727247,0.24665087,672.38,671.49,1.49543997]
[1746842727449,0.24665087,672.38,671.5,1.49543997]
[1746842727653,0.24665087,672.38,671.51,1.79325446]
[1746842727855,0.24665087,672.38,671.52,1.79325446]
[1746842728051,0.24665087,672.38,671.53,1.49543997]
[1746842728250,0.338,672.37,671.54,1.49543997]
[1746842728455,0.59681111,672.37,671.55,1.49543997]
[1746842728655,0.59681111,672.37,671.56,1.49543997]
[1746842728856,0.59681111,672.37,671.57,0.56143836]
[1746842729053,0.24639507,672.36,671.58,0.56143836]
[1746842729253,0.59681111,672.37,671.59,0.56143836]
[1746842729457,0.59681111,672.37,671.58,0.29781449]
[1746842729658,0.24638733,672.36,671.58,0.29781449]
[1746842729854,0.24638733,672.36,671.59,0.29781449]
[1746842730357,0.24638733,672.36,671.6,0.29781449]
[1746842730957,0.24638733,672.36,671.4,0.394]
[1746842731155,0.24638733,672.36,671.41,1.49492013]
[1746842731356,0.25900855,672.35,671.42,1.49492013]
[1746842731559,0.25900855,672.35,671.43,1.49492013]
[1746842731859,0.24638733,672.34,671.44,0.56123914]
[1746842732056,0.24638733,672.34,671.45,0.56123914]
[1746842732261,0.24638733,672.34,671.46,0.85913349]
[1746842732461,0.24638733,672.34,671.46,0.29789435]
[1746842732760,0.24638733,672.34,671.47,0.29789435]
[1746842733262,0.24638733,672.34,671.4,0.394]
[1746842735462,0.24638733,672.34,671.4,0.38143083]
[1746842737763,0.24638733,672.36,671.4,0.38143083]
[1746842738366,0.25919567,672.35,671.4,0.38143083]
[1746842738965,0.24638733,672.34,671.4,0.38143083]
[1746842740063,0.24638733,672.34,671.4,0.65243083]
[1746842740469,0.25909533,672.33,671.4,0.65243083]
[1746842740766,0.24638733,672.32,671.4,0.65243083]
[1746842743772,0.24638733,672.36,671.4,0.65243083]
[1746842744372,0.25902301,672.35,671.4,0.65243083]
[1746842744872,0.24638733,672.34,671.4,0.65243083]
[1746842746674,0.24638733,672.36,671.4,0.65243083]
[1746842746973,0.338,672.37,671.4,0.65243083]
[1746842747273,0.24580502,672.36,671.4,0.65243083]
[1746842747473,0.50475189,672.36,671.4,0.65243083]
[1746842747670,0.49386724,672.36,671.4,0.65243083]
[1746842747972,0.25894687,672.36,671.4,0.65243083]
[1746842748673,0.24586631,672.35,671.4,0.65243083]
[1746842749271,0.24586631,672.36,671.4,0.65243083]
[1746842749473,0.25900951,672.34,671.4,0.65243083]
[1746842749674,0.24586631,672.33,671.4,0.65243083]
[1746842752275,0.24586631,672.33,671.41,0.85881572]
[1746842752477,0.24586631,672.33,671.41,0.29789324]
[1746842752674,0.24586631,672.36,671.41,0.29789324]
[1746842752874,0.29746854,672.34,671.42,0.56090547]
[1746842753073,0.29746854,672.34,671.43,0.85879871]
[1746842753271,0.25897771,672.33,671.43,0.29789324]
[1746842753473,0.50484402,672.33,671.43,0.29789324]
[1746842753671,0.24586631,672.32,671.44,0.29789324]
[1746842754277,0.24586631,672.32,671.45,0.29789324]
[1746842754671,0.24586631,672.32,671.46,0.56087569]
[1746842754871,0.24586631,672.32,671.45,0.29789324]
[1746842755177,0.24586631,672.32,671.46,0.29789324]
[1746842755675,0.25898156,672.31,671.47,0.29789324]
[1746842756176,0.24586631,672.3,671.47,0.29789324]
[1746842756378,0.24586631,672.3,671.4,0.65243083]
[1746842756578,0.24586631,672.3,671.41,0.560985]
[1746842756780,0.29749509,672.28,671.42,0.858863]
[1746842756981,0.29749509,672.28,671.43,0.297878]
[1746842757581,0.24586631,672.27,671.43,0.297878]
[1746842757781,0.24586631,672.27,671.44,0.297878]
[1746842758379,0.24586631,672.27,671.4,0.65243083]
[1746842758579,0.25900662,672.26,671.4,0.65243083]
[1746842758882,0.24586631,672.25,671.4,0.65243083]
[1746842759182,0.25900662,672.26,671.4,0.65243083]
[1746842759481,0.24574254,672.25,671.4,0.65243083]
[1746842760076,0.24574254,672.25,671.4,0.38143083]
[1746842761583,0.25914356,672.24,671.4,0.38143083]
[1746842761883,0.29752164,672.22,671.4,0.38143083]
[1746842762284,0.24574254,672.21,671.4,0.38143083]
[1746842762586,0.24574254,672.21,671.41,0.386]
[1746842762885,0.29753049,672.2,671.41,0.386]
[1746842763386,0.24574254,672.19,671.41,0.386]
[1746842763988,0.29753934,672.18,671.41,0.386]
[1746842764381,0.55655945,672.18,671.41,0.386]
[1746842764585,0.24573568,672.17,671.41,0.386]
[1746842764785,0.2975482,672.16,671.41,0.386]
[1746842765288,0.24573568,672.15,671.41,0.386]
[1746842765789,0.29755705,672.14,671.41,0.386]
[1746842766089,0.24573568,672.13,671.41,0.386]
[1746842766290,0.29756591,672.12,671.41,0.386]
[1746842766983,0.24573568,672.11,671.41,0.386]
[1746842767185,0.29757476,672.1,671.42,0.56178166]
[1746842767386,0.29757476,672.1,671.41,0.386]
[1746842767585,0.55661416,672.1,671.41,0.386]
[1746842767789,0.24573568,672.09,671.41,0.386]
[1746842770386,0.25907218,672.08,671.41,0.386]
[1746842770987,0.24573568,672.07,671.41,0.386]
[1746842771391,0.25907218,672.08,671.41,0.386]
[1746842771894,0.25907218,672.08,671.42,0.56204337]
[1746842772088,0.25907218,672.08,671.41,0.386]
[1746842772285,0.25907218,672.08,671.42,0.5621065]
[1746842772486,0.29758804,672.07,671.43,0.5621065]
[1746842772693,0.29758804,672.07,671.44,0.5621065]
[1746842772888,0.29758804,672.07,671.45,0.86000962]
[1746842773089,0.29758804,672.07,671.46,0.5621065]
[1746842773288,0.29758804,672.07,671.47,0.5621065]
[1746842773488,0.29758804,672.07,671.48,0.5621065]
[1746842773793,0.29758804,672.07,671.49,0.56216119]
[1746842774093,0.29758804,672.07,671.5,0.86002164]
[1746842774292,0.29758804,672.07,671.51,0.56216119]
[1746842774492,0.29758804,672.07,671.52,0.56216119]
[1746842774690,0.29758804,672.07,671.53,0.56216119]
[1746842774889,0.29758804,672.07,671.54,0.56214198]
[1746842775088,0.29758804,672.07,671.55,0.56214198]
[1746842775292,0.29758804,672.07,671.56,0.56214198]
[1746842775492,0.29758804,672.07,671.57,0.56214198]
[1746842775787,0.29758804,672.07,671.58,0.86000243]
[1746842775992,0.29758804,672.07,671.59,0.56214198]
[1746842776188,0.29758804,672.07,671.6,0.56214198]
[1746842776389,0.29758804,672.07,671.61,0.56214198]
[1746842776593,0.29758804,672.07,671.62,0.56214198]
[1746842776794,0.29758804,672.07,671.63,0.56214198]
[1746842776995,0.29758804,672.07,671.06,0.25895362]
[1746842777201,0.29758804,672.07,671.07,1.49729676]
[1746842777390,0.29758804,672.07,671.08,1.49729676]
[1746842777593,0.29758804,672.07,671.09,1.79512987]
[1746842777894,0.29758804,672.07,671.1,1.79512987]
[1746842778089,0.29758804,672.07,671.11,1.49729676]
[1746842778291,0.29758804,672.07,671.12,1.49729676]
[1746842778489,0.29758804,672.07,671.13,1.7943372]
[1746842778791,0.29758804,672.07,671.14,1.49650409]
[1746842779094,0.29758804,672.07,671.15,1.7943372]
[1746842779295,0.29758804,672.07,671.16,1.49650409]
[1746842779499,0.29758804,672.07,671.17,1.49650409]
[1746842779689,0.29758804,672.07,671.18,1.49650409]
[1746842779891,0.29758804,672.07,671.19,1.49650409]
[1746842780093,0.29758804,672.07,671.2,1.49650409]
[1746842780296,0.29758804,672.07,671.21,1.49627426]
[1746842780491,0.29758804,672.07,671.22,1.79410737]
[1746842780695,0.29758804,672.07,671.23,1.49627426]
[1746842780891,0.29758804,672.07,671.24,1.49627426]
[1746842781093,0.29758804,672.07,671.25,1.49627426]
[1746842781293,0.29758804,672.07,671.26,1.49627426]
[1746842781594,0.29758804,672.07,671.27,1.49627426]
[1746842781795,0.29758804,672.07,671.28,1.79410737]
[1746842781995,0.29758804,672.07,671.29,0.93414363]
[1746842782195,0.29758804,672.07,671.3,1.49623859]
[1746842782399,0.29758804,672.07,671.31,1.79416399]
[1746842782597,0.29758804,672.07,671.31,1.23204372]
[1746842782898,0.29758804,672.07,671.32,1.49635733]
[1746842783099,0.29758804,672.07,671.33,1.49635733]
[1746842783399,0.29758804,672.07,671.34,1.79419044]
[1746842783593,0.29758804,672.07,671.35,1.79419044]
[1746842783792,0.29758804,672.07,671.36,1.49635733]
[1746842783992,0.29758804,672.07,671.37,1.49635733]
[1746842784193,0.29758804,672.07,671.38,1.49635733]
[1746842784398,0.29758804,672.07,671.39,1.79427188]
[1746842784591,0.29758804,672.07,671.4,1.49643877]
[1746842784796,0.29758804,672.07,671.41,1.79427188]
[1746842784996,0.29758804,672.07,671.42,1.49643877]
[1746842785198,0.29758804,672.07,671.43,1.79427188]
[1746842785395,0.29758804,672.07,671.44,1.49643877]
[1746842785698,0.29758804,672.07,671.45,1.49643877]
[1746842785895,0.29758804,672.07,671.46,1.49643877]
[1746842786098,0.29758804,672.07,671.47,1.49634299]
[1746842786295,0.29758804,672.07,671.48,1.49634299]
[1746842786498,0.29758804,672.07,671.49,1.49634299]
[1746842786697,0.29758804,672.07,671.5,1.7941761]
[1746842786903,0.29758804,672.07,671.51,1.49634299]
[1746842787198,0.29758804,672.07,671.52,1.7941761]
[1746842787399,0.29758804,672.07,671.53,1.49634299]
[1746842787706,0.374,672.06,671.54,1.49634299]
[1746842787904,0.67159247,672.06,671.55,1.49634299]
[1746842788101,0.2975969,672.05,671.56,1.7941761]
[1746842788301,0.2975969,672.05,671.57,1.49619895]
[1746842788503,0.2975969,672.05,671.58,1.49619895]
[1746842788704,0.2975969,672.05,671.59,1.49619895]
[1746842789005,0.2975969,672.05,671.6,1.49619895]
[1746842789205,0.2975969,672.05,671.58,0.29783311]
[1746842789206,0.2975969,672.05,671.61,1.79403206]
[1746842789400,0.2975969,672.05,671.62,1.49619895]
[1746842789606,0.2975969,672.05,671.63,1.79525834]
[1746842789904,0.2975969,672.05,671.64,1.49742523]
[1746842790108,0.2975969,672.05,671.65,1.79525834]
[1746842790310,0.2975969,672.05,671.66,1.49742523]
[1746842790609,0.2975969,672.05,671.67,1.49742523]
[1746842790809,0.2975969,672.05,671.68,1.79525834]
[1746842791010,0.2975969,672.05,671.69,1.79525834]
[1746842791310,0.2975969,672.05,671.7,1.49742523]
[1746842791511,0.2975969,672.05,671.71,1.49742523]
[1746842791706,0.2975969,672.05,671.72,1.79525834]
[1746842791910,0.2975969,672.05,671.73,1.49742523]
[1746842792206,0.2975969,672.05,671.74,1.79525834]
[1746842792406,0.2975969,672.05,671.75,1.49742523]
[1746842792608,0.2975969,672.05,671.76,1.49742523]
[1746842792805,0.2975969,672.05,671.77,1.49742523]
[1746842793005,0.2975969,672.05,671.78,1.49742523]
[1746842793309,0.2975969,672.05,671.79,1.79282404]
[1746842793508,0.2975969,672.05,671.8,1.49499093]
[1746842793708,0.2975969,672.05,671.81,1.49499093]
[1746842793911,0.2975969,672.05,671.82,1.49499093]
[1746842794211,0.2975969,672.05,671.83,1.79282404]
[1746842794410,0.2975969,672.05,671.84,1.49499093]
[1746842794607,0.374,672.06,671.85,1.49499093]
[1746842794805,0.374,672.06,671.86,1.49499093]
[1746842795010,0.374,672.06,671.87,1.4941799]
[1746842795210,0.374,672.06,671.88,1.4941799]
[1746842795408,0.374,672.06,671.89,1.4941799]
[1746842795607,0.374,672.06,671.9,1.4941799]
[1746842795807,0.374,672.06,671.91,1.79201301]
[1746842796011,0.374,672.06,671.92,1.4941799]
[1746842796212,0.374,672.06,671.93,1.79201301]
[1746842796412,0.374,672.06,671.94,1.4941799]
[1746842796712,0.374,672.06,671.95,1.79061118]
[1746842796911,0.374,672.06,671.96,1.49277807]
[1746842797110,0.374,672.06,671.97,1.49277807]
[1746842797306,0.374,672.06,671.98,1.79061118]
[1746842797506,0.374,672.06,671.99,1.79061118]
[1746842797809,0.374,672.06,672.0,1.49277807]
[1746842798007,0.374,672.06,672.01,1.49277807]
[1746842798206,0.374,672.06,672.02,1.79061118]
[1746842798413,0.374,672.06,672.03,1.49145792]
[1746842798606,0.374,672.06,672.04,1.49145792]
[1746842798813,0.374,672.06,672.05,1.49145792]
[1746842799011,0.374,672.06,672.05,1.78929103]
[1746842803717,0.374,672.06,672.05,1.78794984]
[1746842809923,0.374,672.06,672.05,1.78722592]
[1746842810222,0.374,672.06,672.05,0.29783311]
[1746842810619,0.374,672.06,671.69,0.25877069]
[1746842810817,0.374,672.06,671.7,1.48597764]
[1746842811020,0.374,672.06,671.71,1.48597764]
[1746842811222,0.374,672.06,671.72,1.7836733]
[1746842811422,0.374,672.06,671.73,1.48597764]
[1746842811725,0.374,672.06,671.74,1.48597764]
[1746842811923,0.374,672.06,671.75,1.7836733]
[1746842812121,0.374,672.06,671.76,1.78357041]
[1746842812320,0.374,672.06,671.77,1.48587475]
[1746842812522,0.374,672.06,671.78,1.78353612]
[1746842812726,0.374,672.06,671.79,1.48584046]
[1746842812927,0.374,672.06,671.8,1.48584046]
[1746842813126,0.374,672.06,671.81,1.48584046]
[1746842813427,0.374,672.06,671.82,1.48584046]
[1746842813627,0.374,672.06,671.83,1.78353612]
[1746842813820,0.374,672.06,671.84,1.48584046]
[1746842814020,0.374,672.06,671.85,1.78353612]
[1746842814223,0.374,672.06,671.86,1.48584046]
[1746842814424,0.374,672.06,671.87,1.48578206]
[1746842814726,0.25870817,672.79,671.88,1.48578206]
[1746842814927,0.29727841,672.77,671.89,1.48578206]
[1746842815121,0.29727841,672.77,671.9,1.48578206]
[1746842815321,0.29727841,672.77,671.91,1.48578206]
[1746842815525,0.29727841,672.77,671.92,1.78347772]
[1746842815724,0.29727841,672.77,671.93,1.48578206]
[1746842815924,0.29727841,672.77,671.94,1.48578206]
[1746842816126,0.29727841,672.77,671.95,1.78332583]
[1746842816324,0.24531221,672.76,671.96,1.48563017]
[1746842816521,0.29728725,672.75,671.97,1.48563017]
[1746842816821,0.29728725,672.75,671.98,1.48563017]
[1746842817027,0.24531221,672.74,671.99,1.48563017]
[1746842817329,0.59829609,672.73,672.0,1.78332583]
[1746842817522,0.59829609,672.73,672.01,1.48563017]
[1746842817727,0.24531221,672.72,672.02,1.78332583]
[1746842817927,0.24531221,672.72,672.03,1.48563017]
[1746842818230,0.29730493,672.71,672.04,1.22420115]
[1746842818426,0.29730493,672.71,672.05,0.92650549]
[1746842818622,0.29730493,672.71,672.06,1.22420115]
[1746842818823,0.24531221,672.7,672.07,0.92650549]
[1746842819127,0.24531221,672.7,672.08,1.22420115]
[1746842819325,0.24531221,672.7,672.08,0.29769566]
[1746842819521,0.29730493,672.71,672.08,0.29769566]
[1746842819725,0.29730493,672.71,672.09,0.29769566]
[1746842819926,0.29730493,672.71,671.77,0.25875049]
[1746842819927,0.29730493,672.71,672.1,1.22382744]
[1746842820123,0.29730493,672.71,672.11,0.92613178]
[1746842820322,0.29730493,672.71,672.12,1.7828303]
[1746842820622,0.29730493,672.71,672.13,1.48513464]
[1746842820827,0.29730493,672.71,672.14,1.7828303]
[1746842821128,0.29730493,672.71,672.15,1.48511381]
[1746842821428,0.29730493,672.71,672.16,1.48511381]
[1746842821729,0.29730493,672.71,672.17,1.22382744]
[1746842822028,0.29730493,672.71,672.18,0.92613178]
[1746842822227,0.29730493,672.71,672.19,0.92613178]
[1746842822427,0.29730493,672.71,672.2,1.22382744]
[1746842822629,0.29730493,672.71,672.21,0.92613178]
[1746842822829,0.29730493,672.71,672.2,0.29769566]
[1746842823022,0.29730493,672.71,672.21,0.92590416]
[1746842823229,0.29730493,672.71,672.22,0.29769566]
[1746842823726,0.29730493,672.71,672.23,0.29769566]
[1746842824831,0.29730493,672.71,672.24,0.29769566]
[1746842825026,0.29730493,672.71,672.25,0.92590319]
[1746842825228,0.29730493,672.71,672.26,0.92590319]
[1746842825427,0.29730493,672.71,672.27,1.78122936]
[1746842825627,0.29730493,672.71,672.28,1.4835337]
[1746842825830,0.29730493,672.71,672.29,1.4835337]
[1746842826030,0.29730493,672.71,672.3,1.78121939]
[1746842826326,0.301,672.73,672.31,1.78121939]
[1746842826532,0.301,672.73,672.32,1.48352373]
[1746842826732,0.301,672.73,672.33,1.48352373]
[1746842826931,0.301,672.73,672.32,0.29769566]
[1746842826932,0.301,672.73,672.34,1.78121939]
[1746842827127,0.301,672.73,671.75,0.427]
[1746842827128,0.301,672.73,672.35,1.78036457]
[1746842827330,0.301,672.73,672.36,1.78036457]
[1746842827630,0.301,672.73,672.37,1.78036457]
[1746842827831,0.301,672.73,672.38,1.48193271]
[1746842828127,0.301,672.73,672.39,1.22242167]
[1746842828328,0.301,672.73,672.4,0.92472601]
[1746842828533,0.301,672.73,672.41,1.22242167]
[1746842828730,0.301,672.73,672.42,0.92472601]
[1746842828929,0.301,672.73,672.43,0.92472601]
[1746842829131,0.301,672.73,672.44,0.92472601]
[1746842829328,0.301,672.73,672.43,0.29769566]
[1746842829535,0.301,672.73,672.44,0.9243425]
[1746842829734,0.301,672.73,672.45,0.92461463]
[1746842829929,0.301,672.73,672.46,0.29769566]
[1746842830430,0.301,672.73,672.47,0.29769566]
[1746842830632,0.301,672.73,672.48,0.29769566]
[1746842830928,0.301,672.73,672.49,0.29769566]
[1746842831536,0.301,672.73,672.5,0.29769566]
[1746842831933,0.301,672.73,672.19,0.258564]
[1746842832131,0.301,672.73,672.2,1.4826729]
[1746842832430,0.25857361,673.23,672.21,1.78012214]
[1746842832635,0.29708411,673.21,672.22,1.4826729]
[1746842832833,0.29708411,673.21,672.23,0.92514122]
[1746842833036,0.24539831,673.2,672.21,0.29744924]
[1746842833236,0.29709735,673.18,672.22,1.22297806]
[1746842833433,0.29709735,673.18,672.22,0.29749695]
[1746842833639,0.29709735,673.18,672.23,0.29749695]
[1746842833940,0.24539831,673.17,672.23,0.29749695]
[1746842834136,0.24539831,673.17,672.24,0.29749695]
[1746842834639,0.405,673.16,671.76,0.29749695]
[1746842834840,0.405,673.16,671.8,0.25874953]
[1746842835040,0.405,673.16,671.81,1.48465062]
[1746842835235,0.24539831,673.15,671.82,1.48465062]
[1746842835434,0.24539831,673.15,671.83,1.48465062]
[1746842835639,0.24539831,673.15,671.84,0.92643107]
[1746842835839,0.24539831,673.15,671.85,0.92643107]
[1746842836042,0.24539831,673.15,671.86,0.29749695]
[1746842836540,0.24539831,673.15,671.87,0.29749695]
[1746842836938,0.24539831,673.15,671.88,1.78317924]
[1746842837138,0.24539831,673.15,671.89,1.48568229]
[1746842837338,0.24539831,673.15,671.9,1.78317924]
[1746842837539,0.25874087,673.14,671.91,1.48568229]
[1746842837734,0.25874087,673.14,671.92,1.4858535]
[1746842837937,0.24539831,673.13,671.93,1.4858535]
[1746842838135,0.24539831,673.13,671.94,1.4858535]
[1746842838336,0.24539831,673.13,671.95,1.78335045]
[1746842838536,0.24539831,673.13,671.95,0.29749695]
[1746842838743,0.24539831,673.13,671.96,1.48638208]
[1746842838941,0.24539831,673.13,671.97,1.48638208]
[1746842839143,0.24539831,673.13,671.98,1.48638208]
[1746842839344,0.24539831,673.13,671.99,1.48638208]
[1746842839542,0.25870144,673.12,672.0,1.48638208]
[1746842839842,0.25870144,673.12,672.01,1.78387903]
[1746842840043,0.24539831,673.11,672.02,1.48638208]
[1746842840240,0.24539831,673.11,672.03,1.78387903]
[1746842840435,0.24539831,673.11,672.04,1.48671643]
[1746842840641,0.24539831,673.11,672.05,1.48671643]
[1746842840842,0.24539831,673.11,672.06,1.78421338]
[1746842841042,0.24539831,673.11,672.07,1.48671643]
[1746842841244,0.24539831,673.11,672.08,1.48671643]
[1746842841441,0.24539831,673.11,672.09,1.78421338]
[1746842841642,0.24539831,673.15,672.1,1.48671643]
[1746842841942,0.405,673.16,672.11,1.78421338]
[1746842842143,0.405,673.16,672.12,1.48671643]
[1746842842342,0.405,673.16,672.13,1.48665268]
[1746842842543,0.405,673.16,672.14,1.48665268]
[1746842842741,0.405,673.16,672.15,1.78414963]
[1746842842938,0.405,673.16,672.16,1.48665268]
[1746842843443,0.405,673.16,672.17,0.55944803]
[1746842843846,0.405,673.16,672.18,1.48785827]
[1746842844237,0.405,673.16,672.19,0.55944745]
[1746842844644,0.405,673.16,672.2,0.55944745]
[1746842844844,0.405,673.16,672.21,0.92880605]
[1746842845145,0.405,673.16,672.15,0.29749695]
[1746842845542,0.405,673.16,672.16,1.48903973]
[1746842845842,0.405,673.16,672.17,1.78653668]
[1746842846042,0.405,673.16,672.18,1.48903973]
[1746842846243,0.405,673.16,672.19,1.48804999]
[1746842846443,0.405,673.16,672.2,1.48804999]
[1746842846644,0.405,673.16,672.21,1.48804999]
[1746842846945,0.405,673.16,672.22,1.78554694]
[1746842847241,0.405,673.16,672.23,1.48804999]
[1746842847438,0.405,673.16,671.93,0.417]
[1746842847439,0.405,673.16,672.24,1.78554694]
[1746842847638,0.405,673.16,672.25,1.78554694]
[1746842847842,0.405,673.16,672.26,1.48804999]
[1746842848038,0.405,673.16,672.27,1.4883161]
[1746842848245,0.405,673.16,672.28,1.78581305]
[1746842848447,0.405,673.16,672.29,1.4883161]
[1746842848646,0.405,673.16,672.3,1.4883161]
[1746842848845,0.405,673.16,672.31,1.78581305]
[1746842849040,0.405,673.16,672.32,1.4883161]
[1746842849244,0.24545613,673.15,672.33,1.4883161]
[1746842849441,0.24545613,673.15,672.34,1.78581305]
[1746842849641,0.24545613,673.15,672.35,1.4883161]
[1746842849847,0.24545613,673.15,672.36,1.4883161]
[1746842850149,0.24545613,673.15,672.37,1.48827636]
[1746842850346,0.24545613,673.15,672.38,1.48827636]
[1746842850642,0.24545613,673.15,672.39,1.48827636]
[1746842850843,0.24545613,673.15,672.4,1.78577331]
[1746842851143,0.24545613,673.15,672.41,1.48827636]
[1746842851348,0.24545613,673.15,672.42,1.48827636]
[1746842851550,0.24545613,673.15,672.43,1.48827636]
[1746842851751,0.24545613,673.15,672.44,1.48821422]
[1746842851945,0.24545613,673.15,672.45,1.78571117]
[1746842852150,0.24545613,673.15,672.46,1.48821422]
[1746842852351,0.24545613,673.15,672.47,1.78571117]
[1746842852547,0.24545613,673.15,672.48,1.48821422]